{"text_format":"1","workbook":"xlsx","n_sheets":5,"sheets":["Version log","VBBL Energy Req's","Instructions","REUP (Initial)","REUP (Final)"],"not_rendered":{"charts":0,"images":2,"macros":1,"external_links":0,"defined_names":3,"comments":4,"pivot_tables":0},"unopened":[],"bounds":{"document_bytes":16777216,"sheet_cells":100000,"rows_first":2000,"rows_last":500,"rows_between":2000,"halvings":0,"cell_chars":16384,"cell_head_chars":4096},"cells_cut":0,"cells_raw":0,"read":"whole","date_system":"1900"}

{"sheet":"Version log","index":0,"n_rows":19,"n_cols":10,"rows_kept":19,"cut":false,"hidden":false,"merged":[[1,1,1,4],[2,1,2,4],[4,1,4,4],[7,1,7,4]]}
[]
[null,"New Homes Checklists for Residential 1-3 Storey Projects"]
[null,"Version Updates and Change Log"]
[]
[null,"This tab is to track changes made in new checklist versions and which checklists are no longer accepted\n"]
[]
[null,"Version #","Date implemented","Description of Changes","Acceptable for Submission?"]
[null,"New Home Energy Checklists (Pre Permit, Mid Construction)"]
[null,"No version #","October 2018 and older","Original REUP checklist - Microsoft Word-based. ","No"]
[null,"1.2.1","November 2018","Major Update\nConverted REUP to Excel-based format","Oct 2019 submissions and earlier"]
[null,"1.2.2","December 2018","Minor glitches - fixed","Oct 2019 submissions and earlier"]
[null,"1.2.3","October 2019","Major update\nVBBL updates to $20,000, $75,000 thresholds\nSubstantial update to REUP functionality and look\nReduced from 3 pages to 2\nFrom attic & air sealing to points-based menu system","Submissions from Oct 2019 to January 2021"]
[null,"1.2.4","October 2019","Strata title requirements added: select 2 points","Submissions from Oct 2019 to January 2021",null,null," "]
[null,"1.2.5","November 2019","Minor glitches - fixed","Submissions from Oct 2019 to January 2021"]
[null,null,null,null,"Submissions from Oct 2019 to January 2021"]
[null,2.1,"May 2020","Major update\nMajor formatting change (grey and white), to align with other home energy checklists, support black & white printing","Submissions from Oct 2019 to January 2021"]
[null,2.2000000000000002,"January 2021","- Minor language and functionality fixes. \n- Added 'Large Home GHG' requirement for reconstruction projects.\n- Added '2 points for moving existing house structure'\n- Minor revisions to upgrade points: doors, ventilation, ACH\n- Clarified Exemptions list (minor)","Use for applications up to January 2022",null,null,null,null," "]
[null,2.2999999999999998,"January 2022","Major Update\n- updated for VBBL 2022 bylaw updates: windows, cathedral ceiling, mechanical systems for reconstruction projects, air sealing\n- Added 'Final' post-retrofit checklists to confirm upgrades at final inspection (similar to checklist procedure for new homes)\n- Minor revisions and fixes\n\n","Yes for January 2022 onwards"]
[null,null,null," "]

{"sheet":"VBBL Energy Req's","index":1,"n_rows":34,"n_cols":9,"rows_kept":34,"cut":false,"hidden":false,"merged":[[5,5,7,5],[13,5,14,5],[26,5,27,5],[26,4,27,4],[28,3,29,3],[16,4,17,4],[16,5,17,5],[5,4,7,4],[13,4,14,4],[20,2,29,2],[22,3,23,3],[5,2,14,2],[15,2,19,2]]}
[]
[null,null,"Vancouver Building Bylaw - Part 10 Energy Requirements for Renovations"]
[null,null,"Changes to requirements in green"]
[]
[null,null,null,"Component","VBBL 2019 (applications before January 1st 2022)","VBBL 2022 (applications after January 1st 2022)"]
[null,null,"Opaque Envelope","Above Grade Walls","3.85 (R22 eff)","3.85 (R22 eff)"]
[null,null,null,"Foundation Walls",null,null,null,null," "]
[null,null,null,"Rim / Box Joists"]
[null,null,null,"Attic","8.5 (R48 eff)","8.5 (R48 eff)"]
[null,null,null,"Flat and Vaulted Roof","1&2FD: 4.3 (R28 Nom or R24 eff)\nNon 1&2FD: 5.28 (R30 eff)","Homes <110m2: 5.28 (R30 eff)\nAll other: 7.0 (R40 eff)"]
[null,null,null,"Under Slab","2.5 (R14 eff)","2.5 (R14 eff)"]
[null,null,null,"Exposed Floors","4.2 (R24 eff)","4.2 (R24 eff)"]
[null,null,null,"Blower Door Air Tightness (ACH)","Reconstruction: testing + 5.0 ACH50","Reconstruction: testing + 3.5 ACH50"]
[null,null,null,"Concrete Balconies","N/A","0.42 (R 2.4 eff)"]
[null,null,null,"Exposed Slab Edge"]
[null,null,"Non-opaque Envelope","Side Hinged Doors","U 1.84 W/m2K ","U 1.84 W/m2K "]
[null,null,null,"Windows","U 1.44 W/m2K  (0.25)","U 1.22 W/m2K "]
[null,null,null,"Sliding Glass Doors"]
[null,null,null,"Skylights and Sloped Glazing","U 2.4 (0.42)","U 2.4 (0.42)"]
[null,null,null,"Roof Access Hatches","U 2.9 (0.51)","U 2.9 (0.51)"]
[null,null,"Mechanical","Furnace / Make-up air","92% Annual Fuel Utilization Efficiency (AFUE)","92% Annual Fuel Utilization Efficiency (AFUE)\nReconstruction: electric systems only "]
[null,null,null,"Boiler","92% AFUE","92% AFUE\nReconstruction: electric systems only "]
[null,null,null,"Fireplaces","Direct Vent ","Direct Vent "]
[null,null,null,null,"Electronic Ignition","Electronic Ignition"]
[null,null,null,"Heat Recovery Ventilator (HRV) ","65% sensible heat recovery efficiency (SRE) at 0oC","75% sensible heat recovery efficiency (SRE) at 0oC\n65% SRE for Laneway homes"]
[null,null,null,"Domestic Hot Water","Energy Factor (EF) of 0.78","Energy Factor (EF) of 0.78"]
[null,null,null,"Drainwater Heat Recovery","N/A","N/A"]
[null,null,null,"(DWHR)"]
[null,null,null,"Solar Chase","Solar Chase (PV or HW)","N/A"]
[null,null,null,null,"2x 2” PVC (HW) 1 x 1\" conduit (PV)"]
[]
[]
[]
[null,null,null,null,null," "]

{"sheet":"Instructions","index":2,"n_rows":112,"n_cols":27,"rows_kept":112,"cut":false,"hidden":false,"merged":[[90,2,90,13],[91,2,91,13],[19,17,19,28],[79,2,79,13],[82,2,82,13],[37,4,38,13],[43,4,44,13],[85,2,86,13],[87,2,87,13],[52,2,53,13],[55,2,56,13],[63,2,64,13],[19,2,19,13],[45,4,45,13],[48,4,49,13],[40,4,41,13],[46,4,47,13],[34,4,35,13],[2,1,2,14],[3,1,4,14],[88,2,88,13]]}
[]
[]
[null,"Renovation Energy Upgrade Proposal (REUP) "]
[null,"The REUP checklist is to collect and summarize the energy upgrade information for a renovation project. The form must be filled out by an Energy Advisor, unless otherwise permitted by City staff. It applies to:\n \n- 1&2 Family Dwellings\n - Infill or coach house\n - Ground-access townhouse or multi-plex (duplex, triplex etc.) units\n\nFor other building types, please contact green.buildings@vancouver.ca to discuss your project. "]
[]
[]
[null,null,"A pre-renovation ('D) EnerGuide Assessment (by an Energy Advisor) is REQUIRED if: "]
[null,null,null,null,"the construction value is >$20,000. An assessment completed within the last 4 years is acceptable"]
[]
[null,null,"A post-renovation ('E') EnerGuide Assessment (and the post-retrofit REUP form) is also REQUIRED if: "]
[null,null,null,null,"the construction value is >$75,000."]
[]
[null,null,"Additional Energy Upgrades (points system) are REQUIRED to be selected if: "]
[null,null,null,null,"the construction value is >$75,000 - 2 points"]
[]
[null,null,null,null,"the building is being converted into 2 or more strata lots - 2 points"]
[]
[null,null,null,null,"the building is being relocated from another municipality or from another lot within the City - 2 points"]
[null,null,null,null," "]
[null,null,"The above requirements are EXEMPTED if the entire scope of work is limited to the following:"]
[null,null,null,null," Alarm System Installation / Retrofit"]
[]
[null,null,null,null," Electric Vehicle Charging Station Installation / Retrofit "]
[]
[null,null,null,null," Heat Pump Installation / Retrofit"]
[]
[null,null,null,null," Photovoltaic Installation / Retrofit"]
[]
[null,null,null,null," Re-ducting or re-piping"]
[]
[null,null,null,null," Seismic Upgrade"]
[]
[null,null,null,null," Temporary Building (must be officially recognized by City as temporary, less than 1 year occupancy)"]
[]
[null,null,null,null," Retrofit of recently built home: retrofit of a home with up-to-date energy performance (i.e. received Building Permit after January 1st 2015). If the work includes any additions (i.e. added floor area) or comprehensive work to energy systems, the project is not exempt. "]
[]
[null,null,null,null,null,null,null,null,null,null,null,null,null,null,null,null,null,null," "]
[null,null,null,null," Building Envelope repair: (from VBBL 11.2.1.2 (5)): where building envelope repair involves more than 60% of an opaque portion of a building face, the building envelope on the entire vertical section of that building face shall be replaced and upgraded to the thermal resistance and air-tightness requirements of Part 10, except if the scope is limited to the replacement of windows"]
[]
[null,null,null,null,null,null,null,null,null,null,null,null,null,null,null,null,null,null," "]
[null,null,null,null," Window Replacement: window replacements that don't impact the building envelope (including rough openings) are exempt."]
[]
[]
[null,null,null,null," Site / External work: scope of work is exterior to the building envelope and is independent of the building’s operations. This includes canopy/awning, site work such as soil remediation, trenching, drainage systems, foundation repair, and patio or deck additions (without light, power, heat systems etc.)"]
[]
[null,null,null,null,null,null,null,null,null,null,null,null,null,null,null,null,null,null,null,null,null,null,null,null,null,null," "]
[null,null,null,null," Minor damage repair: includes fire or flood damage, localized to a small portion of building. The building is brought back to at least original condition and performance"]
[]
[null,null,null,null," Remove & Replace \"Re & Re\": minor removal or replacement of items and fixtures. Projects that include millwork, alterations to interior walls, overhauling of kitchens or washrooms, or other projects impacting multiple components or are deemed as comprehensively new work are not exempt"]
[]
[null,null,"EnerGuide assessment (>$20,000)",null,null,null,null,null,null,null,null,null,null,null,null,null,null,"Calculation is a simple area \"base x height\" including windows and other openings"]
[]
[null,null,"Background: A EnerGuide 'D' existing home assessment is required when construction value is determined by City staff to be > $20,000 total.  A post-assessment 'E' assessment is required for >$75,000, to verify the energy upgrades were constructed as stated in the design scope of work"]
[]
[null,null,"Exemptions: A 'D' existing home EnerGuide assessment is not required if:"]
[null,null,"             1) <$20,000, or\n             2)  a previous 'D' or 'N' EnerGuide assessment has been completed in the last 4 years, or\n             3) <$75,000, and scope of work does not impact any energy components (exterior or cosmetic only)\n       \n"]
[]
[]
[null,null,"Additional Home Energy Upgrades (>$75,000)"]
[]
[null,null,"Attic Insulation - R value improvements are required for construction values >$75,000"]
[null,null,"Air Sealing - caulking, weather sealing and covering accessible penetrations to be completed >$75,000"]
[]
[null,null,"Exemptions: there are no outright exemptions, instead the 'Alternative Flexibility tool' can be used to select other upgrades to offset these upgrades"]
[]
[]
[null,null,"Upgrade Relaxations and Flexibility (see VBBL Section 11.7)"]
[null,null,null,null,null,null,null,null,null,null,null,null,null,null,null,null," "]
[null,null,"1) Envelope - new and existing upgraded"]
[]
[null,null,"Exterior walls or ceiling (new or upgraded existing) do not need to achieve full R-values for the following situations:"]
[]
[null,null,null,null,"A) Minor wall addition / alteration: scope of work wall area is <5% of total home wall area "]
[]
[null,null,null,null,"B) Minor roof addition / alteration: scope of work roof area is <5% of total home ceiling area"]
[]
[null,null,null,null,"C) Localized duct, electrical, or damage repair: impacted walls are < 60% of the area of a single wall / ceiling face"]
[]
[]
[null,null,"For any of the above situations, the wall thickness and insulation can match the existing wall cavity, to a minimum of 2x4\" R14 nominal (RSI 2.5 W/m2K), and the existing roof cavity to a minimum of 2x6\" R22 nominal (RSI 3.87 W/m2K)\nIf insulation is being added, proper moisture and weather barriers must be installed per VBBL Section 9.25"]
[]
[null,null,"2) Other upgrade flexibility"]
[null,null,"The Alternative Upgrade tool can also be used to offset (by staff discretion) upgrades that are overly burdensome in the specific house context, by selecting a number of equivalent upgrades."]
[null,null,"Heritage Homes (and homes with heritage features)"]
[]
[null,null,"In general, energy efficiency in heritage homes need not be in full compliance with the current VBBL provided it achieves an “acceptable” level of performance. \"Acceptable\" is clarified as the following features:\n\n"]
[]
[null,null,"Windows\n\nOriginal windows can be put back in place, provided the frame is adequately re-sealed, the assemblies are in acceptable or restored condition, and:\n\nIf replacements are required, double-pane replica windows can be installed. These windows do not have to meet or USI 1.4 W/m2K or NAFS criteria, but site-built or custom products need a professional sign-off."]
[null,null,"Sloped Glazing\n\nOriginal sloped glazing and skylights can be put back in place, provided the frame is adequately caulked and re-sealed, and the assemblies are in acceptable condition.\n\nIf replacements are required, replica skylights do not have to meet NAFS criteria, but site-built or custom products need a professional sign-off  "]
[]
[null,null,"Exterior Doors (side-hinged and sliding)\n\nOriginal doors can be put back in place, provided the door assembly and frame are in acceptable or restored condition, and are adequately re-sealed. For side-hinged doors, weather stripping and sill sweeps are installed on the door slab and frame\n\nIf a replacement is required, a replica door does not have to meet USI 1.8 W/m2K for side-hinged or USI 1.4 W/m2K for sliding doors. They do not have to meet NAFS criteria, but custom site-built products need a professsional sign-off."]
[null,null,"Envelope (wall and ceiling) Insulation\n\nAffected 'new' walls need only meet R14 within a 2x4\" wall cavity, to avoid the impact of furring-in the cavity width on interior or exterior space.  A proper moisture barrier per Section 9.25 must be installed where needed.\n\nIf insulation can not be added due to moisture or other concerns: the project may use the alternative upgrade flexibility tool to propose alternative upgrades to offset installing insulation. "]
[]
[]
[]
[]
[]
[]
[]
[]
[]
[]
[null,null,null,null,null,null,null,null,null,null,null,null,null,null,null,null,null,"          "]
[]
[]
[]
[]
[]
[]
[]
[]
[null,null,null,null,null,null,null,null,null,null,null,null,null,null,null,null,null,"  "]

{"sheet":"REUP (Initial)","index":3,"n_rows":536,"n_cols":63,"rows_kept":536,"cut":false,"hidden":false,"merged":[[91,35,91,37],[90,5,90,34],[91,5,91,34],[100,11,100,20],[72,5,72,34],[73,5,73,34],[74,5,74,34],[77,5,77,34],[78,5,78,34],[79,5,79,34],[95,4,95,35],[96,11,96,20],[96,22,96,24],[96,25,96,37],[97,11,97,20],[97,25,97,37],[89,3,89,37],[93,18,93,29],[93,30,93,31],[94,18,94,31],[90,35,90,37],[83,35,83,37],[84,35,84,37],[85,3,85,37],[86,35,86,37],[87,35,87,37],[88,35,88,37],[83,5,83,34],[84,5,84,34],[86,5,86,34],[87,5,87,34],[88,5,88,34],[78,35,78,37],[79,35,79,37],[80,3,80,37],[82,35,82,37],[82,5,82,34],[72,35,72,37],[73,35,73,37],[74,35,74,37],[76,3,76,37],[77,35,77,37],[75,5,75,34],[75,35,75,37],[81,5,81,34],[81,35,81,37],[68,5,68,34],[68,35,68,37],[69,5,69,34],[69,35,69,37],[70,3,70,37],[71,5,71,34],[71,35,71,37],[65,5,65,34],[65,35,65,37],[66,5,66,34],[66,35,66,37],[67,5,67,34],[67,35,67,37],[62,3,62,4],[62,5,62,34],[62,35,63,37],[63,3,63,34],[64,5,64,34],[64,35,64,37],[57,4,57,35],[58,3,58,16],[58,30,58,31],[60,30,60,31],[53,4,53,35],[54,3,54,18],[54,19,54,21],[54,30,54,31],[55,3,55,18],[55,19,55,21],[55,30,55,31],[50,3,50,16],[50,17,50,18],[50,30,50,31],[51,17,51,18],[51,30,51,31],[45,4,45,11],[45,12,45,34],[45,35,45,37],[47,4,47,35],[48,29,48,32],[49,3,49,16],[49,17,49,18],[49,30,49,31],[43,4,43,11],[43,12,43,22],[43,23,43,34],[43,35,43,37],[44,4,44,11],[44,12,44,22],[44,23,44,34],[44,35,44,37],[41,4,41,11],[41,12,41,22],[41,23,41,34],[41,35,41,37],[42,4,42,11],[42,12,42,22],[42,23,42,34],[42,35,42,37],[39,4,39,11],[39,12,39,22],[39,23,39,34],[39,35,39,37],[40,4,40,11],[40,12,40,22],[40,23,40,34],[40,35,40,37],[37,4,37,11],[37,12,37,22],[37,23,37,34],[37,35,37,37],[38,4,38,11],[38,12,38,22],[38,23,38,34],[38,35,38,37],[35,4,35,11],[35,12,35,22],[35,23,35,34],[35,35,35,37],[36,4,36,11],[36,12,36,22],[36,23,36,34],[36,35,36,37],[33,4,33,11],[33,12,33,22],[33,23,33,34],[33,35,33,37],[34,4,34,11],[34,12,34,22],[34,23,34,34],[34,35,34,37],[31,4,31,11],[31,12,31,22],[31,23,31,34],[31,35,31,37],[32,4,32,11],[32,12,32,22],[32,23,32,34],[32,35,32,37],[29,4,29,11],[29,12,29,22],[29,23,29,34],[29,35,29,37],[30,4,30,11],[30,12,30,22],[30,23,30,34],[30,35,30,37],[27,3,28,3],[27,4,28,11],[27,12,28,22],[27,23,27,31],[27,32,27,34],[27,35,28,37],[28,23,28,31],[28,32,28,34],[21,20,22,37],[1,0,1,2],[1,3,4,7],[2,0,2,2],[2,32,3,37],[4,32,4,37],[14,3,14,13],[14,14,14,15],[15,3,15,13],[15,14,15,15],[12,3,12,13],[12,14,12,15],[13,3,13,13],[13,14,13,15],[5,4,6,35],[22,3,22,15],[22,16,22,17],[18,14,18,15],[1,8,4,31],[27,1,28,1],[98,11,98,20],[100,22,100,24],[100,25,100,37],[98,25,98,37],[7,4,7,35],[8,3,8,10],[8,11,8,18],[9,3,9,10],[9,11,9,18],[9,20,11,37],[23,3,23,17],[25,4,25,35],[26,3,26,11],[26,12,26,22],[26,23,26,34],[26,35,26,37],[16,3,16,13],[16,14,16,15],[17,3,17,13],[17,14,17,15],[19,4,19,35],[21,3,21,12],[21,13,21,17]]}
[]
[null,null,null,null,null,null,null,null,"Renovation Energy Upgrade Proposal (REUP) - PRE-PERMIT\nfor 1&2 Family & Ground-Oriented Home Alterations",null,null,null,null,null,null,null,null,null,null,null,null,null,null,null,null,null,null,null,null,null,null,null,"Permit #"]
[]
[]
[null,null,null,null,null,null,null,null,null,null,null,null,null,null,null,null,null,null,null,null,null,null,null,null,null,null,null,null,null,null,null,null,"v.2.3 Jan - 2022"]
[null,null,null,null,"This form is required to verify renovation energy upgrades are compliant with the Vancouver Building Bylaw. It is to be completed digitally, signed and submitted as part of the permit application. For more information, visit the link at the bottom of this document."]
[null,null,null,null,null,null,null,null,null,null,null,null,null,null,null,null,null,null,null,null,null,null,null,null,null,null,null,null,null,null,null,null,null,null,null,null,null,null,null," "]
[null,null,null,null,"Project Information",null,null,null,null,null,null,null,null,null,null,null,null,null,null,null,null,null,null,null,null,null,null,null,null,null,null,null,null,null,null,null,null,null,null,null,null,null,null,null,null,null,null,null," "]
[null,"->",null,"Project Address:",null,null,null,null,null,null,null,null,null,null,null,null,null,null,null,null,"Scope of Work Summary Alt+Enter to add a space"]
[null,null,null,"Building Type (dropdown)",null,null,null,null,null,null,null,null,null,null,null,null,null,null,null,null,null,null,null,null,null,null,null,null,null,null,null,null,null,null,null,null,null,null,null,null,null,null,null,null,null," "]
[null," ",null,null,null,null,null,null,null,null,null,null,null,null,null,null,null,null,null," ",null,null,null,null,null,null,null,null,null,null,null,null,null,null,null,null,null,null,null,null,null,null,null,null," "]
[null,null,null,"Select 'Yes' if any of the following apply:"]
[null,"->",null,"Construction Value > $20,000",null,null,null,null,null,null,null,null,null,null,null,null,null,{"$f":"IF(O13=\"Y\",\"EnerGuide 'D' pre-assessment is required\",\" \")","v":" "},null,null,null,null,null,null,null,null,null,null,null,null,null,null,null,null,null,null,null,null,null,null,null,null,null,null,null," "]
[null,null,null,"Construction Value > $75,000",null,null,null,null,null,null,null,null,null,null,null,null,null,{"$f":"IF(O14=\"Y\",\"EnerGuide 'D' and 'E' assessments required, select 2 upgrade points (page 2) \",\" \")","v":" "},null,null,null,null,null,null,null,null,null,null,null,null,null,null,null,null,null,null,null,null,null,null," "]
[null,"->",null,"New dwelling unit(s) added to property",null,null,null,null,null,null,null,null,null,null,null,null,null,{"$f":"IF(O15=\"Y\",\"Submit Pre-Permit Checklist for new units\",\" \")","v":" "},null,null,null,null,null,null,null,null,null,null,null,null,null,null,null,null,null,null,null,null,null,null," ",null,null," ",null," "]
[null,"->",null,"Heritage designation",null,null,null,null,null,null,null,null,null,null,null,null,null,{"$f":"IF(O16=\"Y\",\"Relaxations available for windows, doors and existing envelope\",\" \")","v":" "}]
[null,null,null,"Flexibility in upgrades needed?",null,null,null,null,null,null,null,null,null,null,null,null,null,{"$f":"IF(O17=\"Y\",\"Use Alternative Upgrade tool to offset upgrades (page 2)\",\" \")","v":" "}]
[null,"->",null,"Full home reconstruction",null,null,null,null,null,null,null,null,null,null,null,null,null,{"$f":"IF(O18=\"Y\",\"Follow new home compliance path: complete REUP or Pre-permit Checklist. \",\" \")","v":" "}]
[null,"->",null,"Reconstruction & floor area >325 m2? ",null,null,null,null,null,null,null,null,null,null,null,null,null,{"$f":"IF(O19=\"Y\",\"Reconstructed homes >325m2: complete the GHG limit calculator for new homes\",\" \")","v":" "}]
[null,null,null,null,"EnerGuide Evaluations"]
[null,"->",null,"Existing Home Assessment (required for value > $20,000)",null,null,null,null,null,null,null,null,null,null,null,null,null,null,null,null,"Post-Renovation Assessment (required for value > $75,000)"]
[null,null,null,"EnerGuide Pre-Retrofit (D) File #:",null,null,null,null,null,null,null,null,null,null,null,null,null,null,null,null,{"$f":"IF(O18=\"Y\",\"Reconstruction projects: complete P and N files, submit the HOIS to the Building Official (inspector) at final inspection\",IF(O14=\"Y\",\"Required. Complete E-file, and submit Homeowner Information Sheet to the Building Official (inspector) at final inspection.\",\"*Not required* \"))","v":"*Not required* "}]
[null,"->",null,"Compromised envelope at time of assessment?"]
[null,null,null,{"$f":"IF(Q23=\"Y\",\"Complete home assessment at earliest feasible opportunity\",\" \")","v":" "}]
[]
[null,null,null,null,"Upgrade Summary Table",null,null,null,null,null,null,null,null,null,null,null,null,null,null,null,null,null,null,null,null,null,null,null,null,null,null,null,null,null,null,null,null,null,null,null," ",null,null,null,null,null," ",null," "]
[null,"->",null,"Component in Scope? \n(Select \"Y\")",null,null,null,null,null,null,null,null,"Upgrade Compliance\n(dropdown)",null,null,null,null,null,null,null,null,null,null,"Additional Description",null,null,null,null,null,null,null,null,null,null,null,"DWG\n#",null,null,null,null," "]
[null,"->",null,"-","Air Sealing",null,null,null,null,null,null,null,null,null,null,null,null,null,null,null,null,null,null,"Existing Home ACH @ 50 Pa"]
[null,null,null,null,null,null,null,null,null,null,null,null,null,null,null,null,null,null,null,null,null,null,null,"Targeted home ACH @ 50 Pa"]
[null,"->",null,"-","Above grade walls ",null,null,null,null,null,null,null,null,null,null,null,null,null,null,null,null,null,null,null,null,null,null,null,null,null,null,null,null,null,null,null,null,null,null,null,null,null,null,null,null,null,null," ",null,null,null,null,null,null,null,null," "]
[null,null,null,"-","Foundation walls ",null,null,null,null,null,null,null,null,null,null,null,null,null,null,null,null,null,null,null,null,null,null,null,null,null,null,null,null,null,null,null,null,null,null,null,null,null,null,null,null,null,null,null,null," "]
[null,null,null,"-","Rim/box joists\nPony Walls",null,null,null,null,null,null,"-",null,null,null,null,null,null,null,null,null,null,null,null,null,null,null,null,null,null,null,null,null,null,null,null,null,null,null,null,null,null," "]
[null,null,null,"-","Attic Space",null,null,null,null,null,null,null,null,null,null,null,null,null,null,null,null,null,null,null,null,null,null,null,null,null,null,null,null,null,null,null,null,null,null,null,null,null,null," "]
[null,null,null,"-","Flat or vaulted exterior ceiling"]
[null,null,null,"-","Basement slab ",null,null,null,null,null,null,"-"]
[null,null,null,"-","Suspended and Exposed floors ",null,null,null,null,null,null,"-",null,null,null,null,null,null,null,null,null,null,null,null,null,null,null,null,null,null,null,null,null,null,null,null,null,null,null,null,null,null," "]
[null,null,null,"-","Exterior Swing Doors",null,null,null,null,null,null,"-"]
[null,null,null,"-","Windows \nSliding Glass Doors ",null,null,null,null,null,null,"-",null,null,null,null,null,null,null,null,null,null,null,null,null,null,null,null,null,null,null,null,null,null,null,null,null,null,null,null,null,null,null,null,null,null,null,null,null,null,null,null," "]
[null,null,null,"-","Skylights and Roof Hatch",null,null,null,null,null,null,"-"]
[null,null,null,"-","Primary Heating System",null,null,null,null,null,null,"-"]
[null,null,null,"-","Supplemental Heating / Cooling",null,null,null,null,null,null,"-",null,null,null,null,null,null,null,null,null,null,null,null,null,null,null,null,null,null,null,null,null,null,null,null,null,null,null,null,null,null,null," "]
[null,null,null,"-","Fireplaces",null,null,null,null,null,null,"-"]
[null,"->",null,"-","Ventilation + Ductwork",null,null,null,null,null,null,"-"]
[null,null,null,"-","Domestic Hot Water",null,null,null,null,null,null,"-"]
[null,null,null,"-","Solar PV or Solar Thermal",null,null,null,null,null,null,"-"]
[null,null,null,"-","Other Selected Upgrades",null,null,null,null,null,null,"-",null,null,null,null,null,null,null,null,null,null,null,null,null,null,null,null,null,null,null,null,null,null,null,null,null,null,null,null,null,null,null,null,null,null," "]
[null,null,null,null,null,null,null,null,null,null,null,null,null,null,null,null,null,null,null,null,null,null,null,null,null,null,null,null,null,null,null,null,null,null,null,null,null,null,null,null,null,null,null," "]
[null,null,null,null,"Upgrade Selection + Flexibility Tool"]
[null,null,null,null,null,null,null,null,null,null,null,null,null,null,null,null,null,null,null,null," ",null,null,null,null,null,null,null,null,"  Points required"]
[null,null,null," Renovation Value > $75,000?",null,null,null,null,null,null,null,null,null,null,null,null,null,{"$f":"IF(O14=\"y\",\"Y\",\" \")","v":" "},null,null,null,null,null,null,null,null,null,null,null,null,{"$f":"IF(R50=\"Y\",2,0)","v":0},null,null,null,null,null,null,null,null,null,null,null," "]
[null,null,null," Converting existing building into 2 or more strata titles",null,null,null,null,null,null,null,null,null,null,null,null,null,null,null,null,null,null,null,null,null,null,null,null,null,null,{"$f":"IF(R51=\"Y\",2,0)","v":0}]
[null,null,null," Existing house structure is relocated to a new property",null,null,null,null,null,null,null,null,null,null,null,null,null,null,null,null,null,null,null,null,null,null,null,null,null,null,{"$f":"IF(R52=\"Y\",2,0)","v":0}]
[null,null,null,null,null,null,null,null,null,null,null,null,null,null,null,null,null,null,null,null,null,null,null,null,null,null,null,null,null,null,null,null,null,null,null,null,null,null,null,null,null,null,null," "]
[null,"->",null,null,"Upgraded Envelope                                                                                                                                  "]
[null,null,null,"Vertical Walls - maintain existing stud depth of impacted walls",null,null,null,null,null,null,null,null,null,null,null,null,null,null,null,"-",null,null," of total home wall area",null,null,null,null,null,null,null,{"$f":"IF(T55=Q288,0,IF(T55=Q289,1,IF(T55=Q290,2,IF(T55=Q291,3,0))))","v":0}]
[null,null,null,"Flat / Sloped Ceiling - maintain existing stud depth of impacted ceiling",null,null,null,null,null,null,null,null,null,null,null,null,null,null,null,"-",null,null," of total ceiling area",null,null,null,null,null,null,null,{"$f":"IF(T56=Q288,0,IF(T56=Q289,1,IF(T56=Q290,2,IF(T56=Q291,3,0))))","v":0},null,null,null,null,null,null,null,null,null,null,null," "]
[null,null,null,null,null,null,null,null,null,null,null,null,null,null,null,null,null,null,null,null,null,null,null,null,null,null,null,null,null,null,null,null,null," "]
[null," ",null,null,"Other proposed alternative upgrades "]
[null,null,null,null,null,null,null,null,null,null,null,null,null,null,null,null,null," to offset by selecting appropriate # of points",null,null,null,null,null,null,null,null,null,null,null,null,null,null,null,null,null,null,null,null," "]
[]
[null,null,null,null,null,null,null,null,null,null,null,null,null,null,null,null,null,null,null,null,null,null,null,null,null,null,null,null,null,"Required points to select: ",{"$f":"AE59+AE56+AE55+AE50+AE51+AE52","v":0}]
[]
[null,"->",null,"'Y' / #",null,"Selected Upgrades to Existing House",null,null,null,null,null,null,null,null,null,null,null,null,null,null,null,null,null,null,null,null,null,null,null,null,null,null,null,null,null,"DWG\n#"]
[null,null,null,"Envelope and Insulation"]
[null,"->",null,"-",{"$f":"IF(D65=\"Y\",1,0)","v":0}," Minor air sealing:  target 10% ACH improvement – EA identifies major leaks; air sealing repairs completed (1 pt)",null,null,null,null,null,null,null,null,null,null,null,null,null,null,null,null,null,null,null,null,null,null,null,null,null,null,null,null,null,null,null,null,null,null,null,null,null," "]
[null,"->",null,"-",{"$f":"IF(D66=\"Y\",2,0)","v":0}," Major air sealing: 50% reduction via professional aerosol system; requires mechanical continuous exhaust  (2 pts)",null,null,null,null,null,null,null,null,null,null,null,null,null,null,null,null,null,null,null,null,null,null,null,null,null,null,null,null,null,null,null,null,null,null,null,null,null,null,null,null,null," "]
[null,"->",null,"-",{"$f":"IF(D67=\"Y\",1,0)","v":0}," Attic insulation: if <R12 increase to R28, if >R12 increase to R40 (nominal values)  (1 pt)",null,null,null,null,null,null,null,null,null,null,null,null,null,null,null,null,null,null,null,null,null,null,null,null,null,null,null,null,null,null,null,null,null,null,null," "," "]
[null,"->",null,"-",{"$f":"IF(D68=\"Y\",1,0)","v":0}," Flat or vaulted exterior ceiling: if lower than R14 nominal, increase to R14 or higher  (1 pt)"]
[null,null,null,"-",{"$f":"IF(D69=\"Y\",1,0)","v":0}," Uninsulated / exposed spaces: fully insulate all crawl space / basement wall / exposed floor cavities (1 pt)"]
[null,null,null,"-",{"$f":"IF(D70=\"Y\",4,0)","v":0}," Exterior insulation: (min 1\" thick) on >50% of the home's exterior vertical above-grade sheathing (4 pts)"]
[null,null,null,"Home Electrification",null,null,null,null,null,null,null,null,null,null,null,null,null,null,null,null,null,null,null,null,null,null,null,null,null,null,null,null,null,null,null,null,null,null,null,null,null,null," ",null,null,null,null," ",null,null," "]
[null,null,null,"-",{"$f":"IF(D72=\"Y\",6,0)","v":0}," 100% electric: home fuel services disconnected (6 pts)",null,null,null,null,null,null,null,null,null,null,null,null,null,null,null,null,null,null,null,null,null,null,null,null,null,null,null,null,null,null,null,null,null,null,null,null,null,null," "]
[null,"->",null,"-",{"$f":"IF(D73=\"Y\",1,0)","v":0}," EV charger: Level 2 charger installation in carport or garage (1 pt)"]
[null,null,null,"-",{"$f":"IF(D74=\"Y\",1,0)","v":0}," Electric panel: amperage upgrade to support additional electrical loads (1 pt)",null,null,null,null,null,null,null,null,null,null,null,null,null,null,null,null,null,null,null,null,null,null,null,null,null,null,null,null,null,null,null,null,null,null,null," ",null,null,null," "]
[null,null,null,"-","-"," Solar PV: rooftop array (1 point per kW installed, max. 3 points) or Solar Hot Water system (2 pts)",null,null,null,null,null,null,null,null,null,null,null,null,null,null,null,null,null,null,null,null,null,null,null,null,null,null,null,null,null,null,null,null,null,null,null,null," "]
[null,"->",null,"-",{"$f":"IF(D76=\"Y\",1,0)","v":0}," Appliance fuel-switch: replace with electric models, or decommission a fuel-based appliance (e.g. fireplace, dryer, stove) (1 pt)",null,null,null,null,null,null,null,null,null,null,null,null,null,null,null,null,null,null,null,null,null,null,null,null,null,null,null,null,null,null,null,null,null,null,null,null,null,null,null," "]
[null,null,null,"Windows, Doors and Sloped Glazing",null,null,null,null,null,null,null,null,null,null,null,null,null,null,null,null,null,null,null,null,null,null,null,null,null,null,null,null,null,null,null,null,null,null,null,null,null,null," "]
[null,"->",null,"-",{"$f":"IF(D78=\"Y\",1,0)","v":0}," Passive cooling: install awnings or exterior shading on windows / glass doors on at least one entire building face (1 pt)"]
[null,null,null,"-","-"," Windows: Replace 3 existing units with USI < 1.04 W/m2K (1 point per 3 units, max 3 pts)",null,null,null,null,null,null,null,null,null,null,null,null,null,null,null,null,null,null,null,null,null,null,null,null,null,null,null,null,null,null,null,null,null,null,null," ",null," "]
[null,null,null,"-",{"$f":"IF(D80=\"Y\",1,0)","v":0}," Doors: Replace two exterior doors, at least one achieving a USI < 1.44 W/m2K product (1 pt)",null,null,null,null,null,null,null,null,null,null,null,null,null,null,null,null,null,null,null,null,null,null,null,null,null,null,null,null,null,null,null,null,null,null,null,null," ",null,null,null,null,null,null,null,null,null,null,null," "]
[null,null,null,"HVAC - Heating, Ventilation, Air Conditioning",null,null,null,null,null,null,null,null,null,null,null,null,null,null,null,null,null,null,null,null,null,null,null,null,null,null,null,null,null,null,null,null,null,null,null,null,null,null,null,null,null," "]
[null,"->",null,null,{"$f":"IF(D82=\"Y\",1,0)","v":0}," Ventilation and controls: all bathrooms require exhaust fans on timers or humidistats & install smart home thermostat  (1 pt)"]
[null,null,null,"-",{"$f":"IF(D83=\"Y\",3,0)","v":0}," Heat pump displacement: install heat pump for <70% of house floor area, provides heating down to at least 0 deg C (3 pts)",null,null,null,null,null,null,null,null,null,null,null,null,null,null,null,null,null,null,null,null,null,null,null,null,null,null,null,null,null,null,null,null,null," "," "]
[null,null,null,"-",{"$f":"IF(D84=\"Y\",5,0)","v":0}," Heat pump replacement: install heat pump as primary system for >70% of floor area (5 pts)"]
[null," ",null,"-",{"$f":"IF(D85=\"Y\",2,0)","v":0}," Heat Recovery Ventilator (HRV or ERV): install >80% efficiency SRE at 0 deg C (2 pts)"]
[null,null,null,"Domestic Hot Water (DHW)"]
[null,null,null,"-",{"$f":"IF(D87=\"Y\",1,0)","v":0}," Electric DHW: replace existing system with an electric model (1 pt)",null,null,null,null,null,null,null,null,null,null,null,null,null,null,null,null,null,null,null,null,null,null,null,null,null,null,null,null,null,null,null,null,null,null,null,null,null," ",null,null,null,null,null,null," "]
[null,null,null,"-",{"$f":"IF(D88=\"Y\",3,0)","v":0}," Heat Pump DHW: Replace existing system with a heat pump model (3 pts)"]
[null,null,null,"-",{"$f":"IF(D89=\"Y\",1,0)","v":0}," Drain Water Heat Recovery: install a minimum 42% DWHR system (1 pt)"]
[null,null,null,"Other (propose upgrades not in this list, to be reviewed by City of Vancouver staff)",null,null,null,null,null,null,null,null,null,null,null,null,null,null,null,null,null,null,null,null,null,null,null,null,null,null,null,null,null,null,null,null,null,null,null," "]
[null,null,null,"-","-",null,null,null,null,null,null,null,null,null,null,null,null,null,null,null,null,null,null,null,null,null,null,null,null,null,null,null,null,null,null,null,null,null,null,null,null,null,null,null," "]
[null,null,null,"-","-",null,null,null,null,null,null,null,null,null,null,null,null,null,null,null,null,null,null,null,null,null,null,null,null,null,null,null,null,null,null,null,null,null,null," "]
[null,null,null,null,null,null,null,null,null,null,null,null,null,null,null,null,null,null,null,null,null,null,null,null,null,null,null,null,null,null,null,null,null,null,null,null,null,null,null,null,null,null,null," "]
[null,null,null,null,null,null,null,null,null,null,null,null,null,null,null,null,null,null,"Total Selected Points",null,null,null,null,null,null,null,null,null,null,null,{"$f":"SUM(D65:E92)","v":0}]
[null,null,null,null,null,null,null,null,null,null,null,null,null,null,null,null,null,null,{"$f":"IF(AE94>=AE61,\"Complete\",\"Select more upgrades\")","v":"Complete"}]
[null,null,null,null,"Information and Signature",null,null,null,null,null,null,null,null,null,null,null,null,null,null,null,null,null,null,null,null,null,null,null,null,null,null,null,null,null,null,null,null,null,null,null,null,null,null," ",null,null," "]
[null,null,null,"EA Name and EA #: ",null,null,null,null,null,null,null,null,null,null,null,null,null,null,null,null,null,null,"EA Email:"]
[null,null,null,"EA Company: ",null,null,null,null,null,null,null,null,null,null,null,null,null,null,null,null,null,null,"EA Phone:"]
[null,null,null,"Energy Advisor Signature:",null,null,null,null,null,null,null,null,null,null,null,null,null,null,null,null,null,null,"Date:"]
[]
[null,null,null,"Homeowner (or representative):",null,null,null,null,null,null,null,null,null,null,null,null,null,null,null,null,null,null,"Owner signature"]
[null,null,null,"www.vancouver.ca/home-energy-renovations"]
[]
[]
[]
[]
[]
[]
[null,null,null,null,null,null,null,null,null,null,null,null,null," "]
[]
[]
[null,null,null,null,null,null,null,null,null,null,null,null,null," "]
[]
[]
[]
[]
[]
[]
[]
[]
[]
[]
[]
[]
[]
[]
[]
[]
[]
[]
[]
[]
[]
[]
[]
[]
[]
[]
[]
[]
[]
[]
[]
[]
[]
[]
[]
[]
[]
[]
[]
[]
[]
[]
[]
[]
[]
[]
[]
[]
[]
[]
[]
[]
[]
[]
[]
[]
[null,null,null,"Tables hidden below ↓"]
[]
[null,null,null,"Air tightness"]
[null,null,null,"Selected upgrade: target 10% improvement; seal major leaks identified by EA"]
[null,null,null,"Selected upgrade: 50% ACH improvement"]
[null,null,null,"Reconstruction: to meet 3.5 ACH @ 50Pa (or 2.1 NLA for small units)"]
[null,null,null,"Other"]
[]
[null,null,null,"Walls"]
[null,null,null,"Meets code: new or upgraded walls are R22 effective (RSI 3.85) "]
[null,null,null,"Alternatives upgrades selected - maintain existing stud depth"]
[null,null,null,"Heritage: maintain existing stud depth and insulation"]
[null,null,null,"Other"]
[]
[null,null,null,"Rim joists"]
[null,null,null,"Meets code: new or upgraded walls are R22 effective (RSI 3.85) "]
[null,null,null,"Alternatives upgrades selected - maintain existing stud depth"]
[null,null,null,"Heritage: maintain existing stud depth and insulation"]
[null,null,null,"Other"]
[]
[null,null,null,"Attic Space"]
[null,null,null,"'New' attic: meets R48 effective",null,null,null,null,null,null,null,null,null,null," "," "]
[null,null,null,"Selected upgrade: existing <R12 increased to R28"]
[null,null,null,"Selected upgrade: existing >R12 increased to R40"]
[null,null,null,"Other"]
[]
[null,null,null,"Flat or vaulted exterior ceiling"]
[null,null,null,"Meet code: R40 eff (RSI 7.0); or R30 eff (RSI 5.28) for for <110m2 units "]
[null,null,null,"Alternatives upgrades selected: maintain existing joist depth, R14+"]
[null,null,null,"Heritage house - maintain existing joist depth"]
[null,null,null,"Other"]
[]
[null,null,null,"Basement slab "]
[null,null,null,"Meets code: new foundation - meets R14 effective"]
[null,null,null,"Other"]
[]
[null,null,null,"Suspended and Exposed floors "]
[null,null,null,"Meets code: new or upgraded floor is R24 eff. (RSI 4.2)"]
[null,null,null,"Selected upgrade: existing joists filled with min. R24 nominal"]
[null,null,null,"Other"]
[]
[null,null,null,"Doors (side hinged)"]
[null,null,null,"Meets code: new doors are USI 1.84 or lower"]
[null,null,null,"Selected upgrade: replacement door(s); at least one USI 1.64 or lower"]
[null,null,null,"Heritage: keep existing door, complete weather sealing"]
[null,null,null,"Other"]
[]
[null,null,null,"Windows and Sliding Glass Doors"]
[null,null,null,"Meets code: new or replaced windows / sliding glass USI 1.22 or lower"]
[null,null,null,"Selected upgrade: replacement window(s) USI 1.04 or lower",null,null,null,null,null,null,null,null,null,null,null,null,null,null," "]
[null,null,null,"Heritage: keep existing windows, complete weather sealing"]
[null,null,null,"Heritage: replace windows with double pane replicas"]
[null,null,null,"Other"]
[]
[null,null,null,"Skylights and Roof Hatch"]
[null,null,null,"Meets code: new or replaced skylights are USI 2.4, Roof hatch USI 2.9 or lower"]
[null,null,null,"Other"]
[]
[null,null,null,"Primary Heating System"]
[null,null,null,"Meets code: new furnace / boiler- minimum 92% efficient AFUE"]
[null,null,null,"Reconstruction: electric heating system"]
[null,null,null,"Selected upgrade: primary system replaced with central heat pump"]
[null,null,null,"Other"]
[]
[null,null,null,"Supplemental heating / cooling"]
[null,null,null,"Selected upgrade: heat pump <70% floor area"]
[null,null,null,"Selected upgrade: heat pump >70% floor area"]
[null,null,null,"Other"]
[]
[null,null,null,"Fireplaces"]
[null,null,null,"Meets code: new fireplace(s) direct vent electronic ignition and a timer"]
[null,null,null,"Selected upgrade: remove existing fireplace(s) or replace with electric model"]
[null,null,null,"Other"]
[]
[null,null,null,"HRV / Ventilation + Ductwork"]
[null,null,null,"Meets code: new HRV >75% SRE @ 0 deg C, on continuous mode or better"]
[null,null,null,"Selected upgrade: HRV >80% SRE @ 0 deg C"]
[null,null,null,"Selected upgrade: Exhaust fans on timer or humidistat & smart thermostat"]
[null,null,null,"Other"]
[]
[null,null,null,"Domestic Hot Water"]
[null,null,null,"Meets code: new system (EF) or (UEF) ≥ 0.78"]
[null,null,null,"Selected upgrade: DHW electric replacement"]
[null,null,null,"Selected upgrade: DHW heat pump "]
[null,null,null,"Other"]
[]
[null,null,null,"Solar PV or Solar Thermal"]
[null,null,null,"New system - installed to best practices"]
[null,null,null,"Other"]
[]
[null,null,null,"Other Upgrades"]
[]
[]
[null,null,null,"-"]
[null,null,null,"1 or 2 Family Dwelling"]
[null,null,null,"Laneway or Coach House"]
[null,null,null,"Townhouse unit"]
[null,null,null,"Other"]
[]
[]
[null,null,null,null,null,null,null,"-"]
[null,null,null,null,null,null,null,null,"-","-"]
[null,null,null,null,null,"-",null,null,0,6]
[null,null,null,null,null,null,null,null,"-","-"]
[null,null,null,null,null,"-",null,null,0,5]
[null,null,null,null,null,1,null,null,"-","-"]
[null,null,null,null,null,2,null,null,1,10]
[null,null,null,null,null,3,null,null,"-"]
[null,null,null,null,null,4,null,null,2]
[null,null,null,null,null,5,null,null,"-"]
[null,null,null,null,null,"-",null,null,3]
[null,null,null,null,null,1]
[null,null,null,null,null,null,null,null,"-",null,null,null,null,null,null,null,"-"]
[null,null,null,null,null,"-",null,null,-1,null,null,null,null,null,null,null,1]
[null,null,null,null,null,1,null,null,"-",null,null,null,null,null,null,null,2]
[null,null,null,null,null,2,null,null,2,null,null,null,null,null,null,null,3]
[null,null,null,null,null,3,null,null,3]
[null,null,null,null,null,4]
[null,null,null,null,"-","-",null,null,null,null,null,null,null,null,null,null,"-",null,null,null,"-"]
[null,null,null,null,"Y","Y",null,null,null,null,null,null,null,null,null,null,"< 5%",null,null,null,"<5%"]
[null,null,null,null,"-","N",null,null,null,null,null,null,null,null,null,null,"5 - 25% ",null,null,null,"5 - 50%"]
[null,null,null,null,null,null,null,null,null,null,null,null,null,null,null,null,"26 - 50%",null,null,null,"> 51 %"]
[null,null,null,null,"X",null,null,null,null,null,null,null,null,null,null,null,"> 51%"]
[null,null,null,null,"-"]
[]
[null,null,null,null,null,null,null,null,null,null,null,null,null,null,null,null,0]
[null,null,null,null,null,null,null,null,null,null,null,null,null,null,null,null,1]
[null,null,null,null,null,null,null,null,null,null,null,null,null,null,null,null,2]
[null,null,null,null,null,null,null,null,null,null,null,null,null,null,null,null,3]
[]
[]
[]
[]
[null,null,null,null,null,null,null,"-"]
[null,null,null,null,"-",null,null,0]
[null,null,null,null,1,null,null,"-"]
[null,null,null,null,2,null,null,1]
[null,null,null,null,3,null,null,"-"]
[null,null,null,null,4,null,null,2]
[null,null,null,null,null,null,null,"-"]
[null,null,null,null,"-",null,null,3]
[null,null,null,null,1]
[null,null,null,null,null,null,null,"-"]
[null,null,null,null,"-",null,null,-1]
[null,null,null,null,1]
[null,null,null,null,2]
[null,null,null,null,3]
[null,null,null,null,4]
[]
[]
[]
[]
[]
[]
[]
[]
[]
[null,null,null,null,null,null,null,null,null,null,null,null,null,null,null," "]
[]
[]
[]
[]
[]
[]
[]
[]
[]
[]
[]
[]
[]
[]
[]
[]
[]
[]
[]
[]
[]
[]
[]
[]
[]
[]
[]
[]
[]
[]
[]
[]
[]
[]
[]
[]
[]
[]
[]
[]
[]
[]
[]
[]
[]
[]
[]
[]
[]
[]
[]
[]
[]
[]
[]
[]
[]
[]
[]
[]
[]
[]
[]
[null,null,null,null,null,null,null,null,null,null,null,null,null,null,null,null,null,null,null,null,null,null,null,null,null,null,null,null,null,null,null," "]
[]
[]
[]
[]
[null,null,null,null,null,null,null,null,null,null,null,null,null,null,null,null,null,null,null,null,null,null,null,null,null,null,null,null,null,null,null,null,null,null,null,null,null,null,null,null,null,null,null,null," "]
[]
[]
[]
[]
[]
[]
[]
[]
[]
[]
[]
[]
[]
[]
[]
[null,null,null,null,null,null,null,null,null,null,null,null,null,null,null,null,null,null,null,null,null,null,null,null,null,null,null,null,null,null,null,null,null,null,null,null,null,null,null,null,null,null,null,null,null," "]
[null,null,null,null,null,null,null,null,null,null,null,null,null,null,null,null,null,null,null,null,null,null,null,null,null,null,null,null,null,null,null,null,null,null,null,null,null,null,null,null,null,null,null," "]
[null,null,null,null,null,null,null,null,null,null,null,null,null,null,null,null,null,null,null,null,null,null,null,null,null,null,null,null,null,null,null,null,null,null,null,null,null,null,null,null,null,null,null,null,null,null,null,null,null," "]
[]
[]
[]
[]
[]
[]
[]
[]
[]
[]
[]
[]
[]
[]
[]
[]
[]
[]
[]
[]
[]
[]
[]
[]
[]
[]
[null,null,null,null,null,null,null,null,null,null,null,null,null,null,null,null,null,null,null,null,null,null,null,null,null,null,null,null,null,null,null,null,null,null,null,null,null,null,null,null,null,null,null,null,null,null,null,null,null,null,null,null,null,null,null,null,null,null,null,null,null,null," "]
[]
[]
[]
[]
[]
[]
[]
[]
[]
[]
[]
[]
[]
[]
[]
[]
[]
[]
[]
[]
[]
[]
[]
[]
[]
[]
[]
[]
[]
[]
[]
[]
[]
[]
[]
[]
[]
[]
[]
[]
[]
[]
[]
[]
[]
[]
[]
[]
[]
[]
[null,null,null,null,null," "]
[]
[]
[]
[]
[]
[]
[]
[]
[]
[]
[]
[]
[]
[]
[]
[]
[]
[]
[]
[]
[]
[]
[]
[]
[]
[]
[]
[]
[]
[]
[]
[]
[]
[]
[]
[]
[]
[]
[]
[]
[]
[]
[]
[]
[null,null,null,null,null,null,null,null,null,null,null,null,null,null,null,null,null,null,null," "]

{"sheet":"REUP (Final)","index":4,"n_rows":514,"n_cols":63,"rows_kept":514,"cut":false,"hidden":false,"merged":[[64,5,64,33],[68,5,68,33],[71,5,71,33],[72,5,72,33],[65,5,65,33],[69,5,69,33],[52,5,52,33],[58,5,58,33],[62,5,62,33],[67,5,67,33],[53,5,53,33],[54,5,54,33],[55,5,55,33],[59,5,59,33],[71,34,71,37],[72,34,72,37],[45,5,45,33],[46,5,46,33],[47,5,47,33],[48,5,48,33],[49,5,49,33],[50,5,50,33],[56,5,56,33],[60,5,60,33],[67,34,67,37],[68,34,68,37],[69,34,69,37],[62,34,62,37],[63,34,63,37],[64,34,64,37],[65,34,65,37],[44,3,44,33],[45,34,45,37],[46,34,46,37],[47,34,47,37],[48,34,48,37],[49,34,49,37],[55,3,55,4],[56,3,56,4],[58,3,58,4],[59,3,59,4],[60,3,60,4],[62,3,62,4],[35,34,35,37],[36,34,36,37],[37,34,37,37],[38,34,38,37],[39,34,39,37],[45,3,45,4],[43,34,44,37],[43,3,43,33],[39,23,39,33],[24,34,24,37],[25,34,25,37],[26,34,26,37],[27,34,27,37],[28,34,28,37],[29,34,29,37],[30,34,30,37],[31,34,31,37],[32,34,32,37],[31,23,31,33],[32,23,32,33],[33,23,33,33],[34,23,34,33],[35,23,35,33],[36,23,36,33],[24,23,24,33],[25,23,25,33],[26,23,26,33],[27,23,27,33],[28,23,28,33],[29,23,29,33],[78,11,78,20],[78,22,78,24],[78,25,78,37],[1,8,4,31],[40,12,40,33],[21,34,21,37],[22,34,23,37],[74,11,74,20],[74,22,74,24],[74,25,74,37],[75,11,75,20],[75,25,75,37],[76,11,76,20],[76,25,76,37],[73,4,73,35],[72,3,72,4],[70,3,70,37],[68,3,68,4],[69,3,69,4],[71,3,71,4],[66,3,66,37],[65,3,65,4],[64,3,64,4],[67,3,67,4],[61,3,61,37],[63,3,63,4],[60,34,60,37],[63,5,63,33],[57,3,57,37],[56,34,56,37],[58,34,58,37],[59,34,59,37],[53,34,53,37],[54,34,54,37],[55,34,55,37],[51,3,51,37],[47,3,47,4],[48,3,48,4],[46,3,46,4],[49,3,49,4],[50,3,50,4],[52,3,52,4],[53,3,53,4],[54,3,54,4],[52,34,52,37],[50,34,50,37],[39,4,39,11],[39,12,39,22],[40,4,40,11],[40,34,40,37],[38,23,38,33],[37,4,37,11],[37,12,37,22],[38,4,38,11],[38,12,38,22],[37,23,37,33],[35,4,35,11],[35,12,35,22],[36,4,36,11],[36,12,36,22],[34,34,34,37],[33,4,33,11],[33,12,33,22],[34,4,34,11],[34,12,34,22],[33,34,33,37],[31,4,31,11],[31,12,31,22],[32,4,32,11],[32,12,32,22],[30,23,30,33],[29,4,29,11],[29,12,29,22],[30,4,30,11],[30,12,30,22],[27,4,27,11],[27,12,27,22],[28,4,28,11],[28,12,28,22],[25,4,25,11],[25,12,25,22],[26,4,26,11],[26,12,26,22],[24,4,24,11],[24,12,24,22],[22,23,22,30],[22,31,22,33],[23,31,23,33],[22,1,23,1],[22,3,23,3],[22,4,23,11],[22,12,23,22],[20,4,20,35],[21,3,21,11],[21,12,21,22],[21,23,21,33],[15,14,15,15],[16,4,16,35],[18,3,18,12],[18,13,18,17],[12,3,12,13],[12,14,12,15],[13,3,13,13],[13,14,13,15],[14,3,14,13],[14,14,14,15],[5,4,6,35],[7,4,7,35],[8,3,8,10],[8,11,8,18],[9,3,9,10],[9,11,9,18],[9,20,11,37],[1,0,1,2],[1,3,4,7],[2,0,2,2],[2,32,3,37],[4,32,4,37]]}
[]
[null,null,null,null,null,null,null,null,"Renovation Energy Upgrade Proposal (REUP) - FINAL\nfor 1&2 Family & Ground-Oriented Home Alterations",null,null,null,null,null,null,null,null,null,null,null,null,null,null,null,null,null,null,null,null,null,null,null,"Permit #"]
[]
[]
[null,null,null,null,null,null,null,null,null,null,null,null,null,null,null,null,null,null,null,null,null,null,null,null,null,null,null,null,null,null,null,null,"v.2.3 Jan - 2022"]
[null,null,null,null,"This form is required to verify renovation energy upgrades are compliant with the Vancouver Building Bylaw. It is to be completed digitally, signed and submitted at final inspection. For more information, visit the link at the bottom of this document."]
[null,null,null,null,null,null,null,null,null,null,null,null,null,null,null,null,null,null,null,null,null,null,null,null,null,null,null,null,null,null,null,null,null,null,null,null,null,null,null," "]
[null,null,null,null,"Project Information",null,null,null,null,null,null,null,null,null,null,null,null,null,null,null,null,null,null,null,null,null,null,null,null,null,null,null,null,null,null,null,null,null,null,null,null,null,null,null,null,null,null,null," "]
[null,"->",null,"Project Address:",null,null,null,null,null,null,null,null,null,null,null,null,null,null,null,null,"Scope of Work Summary Alt+Enter to add a space"]
[null,null,null,"Building Type (dropdown)",null,null,null,null,null,null,null,null,null,null,null,null,null,null,null,null,null,null,null,null,null,null,null,null,null,null,null,null,null,null,null,null,null,null,null,null,null,null,null,null,null," "]
[null," ",null,null,null,null,null,null,null,null,null,null,null,null,null,null,null,null,null," ",null,null,null,null,null,null,null,null,null,null,null,null,null,null,null,null,null,null,null,null,null,null,null,null," "]
[null,null,null,"Select 'Yes' if any of the following apply:"]
[null,"->",null,"Heritage designation",null,null,null,null,null,null,null,null,null,null,"-",null,null,{"$f":"IF(O13=\"Y\",\"Relaxations available for windows, doors and existing envelope\",\" \")","v":" "}]
[null,null,null,"Flexibility in upgrades used?",null,null,null,null,null,null,null,null,null,null,"-",null,null,{"$f":"IF(O14=\"Y\",\"Include all selected alternative upgrades in the summary table\",\" \")","v":" "}]
[null,"->",null,"Full home reconstruction",null,null,null,null,null,null,null,null,null,null,"-",null,null,{"$f":"IF(O15=\"Y\",\"Building meets current energy code\",\" \")","v":" "}]
[null,"->",null,"Reconstruction & floor area >325 m2? ",null,null,null,null,null,null,null,null,null,null,null,null,null,{"$f":"IF(O16=\"Y\",\"Reconstructed homes >325m2: submit the GHG limit calculator for new homes\",\" \")","v":" "}]
[null,null,null,null,"EnerGuide Evaluations"]
[null,"->",null,"As-Built Home Assessment (required for value > $75,000)"]
[null,null,null,"EnerGuide Post-Retrofit (E) File #:",null,null,null,null,null,null,null,null,null,null,null,null,null,null,null,null,null,null," "]
[]
[null,null,null,null,"Upgrade Summary Table",null,null,null,null,null,null,null,null,null,null,null,null,null,null,null,null,null,null,null,null,null,null,null,null,null,null,null,null,null,null,null,null,null,null,null," ",null,null,null,null,null," ",null," "]
[null,"->",null,"Component in Scope? \n(Select \"Y\")",null,null,null,null,null,null,null,null,"Upgrade Compliance\n(dropdown)",null,null,null,null,null,null,null,null,null,null,"Additional Description",null,null,null,null,null,null,null,null,null,null,"EA Verified",null,null,null,null,null," "]
[null,"->",null,"-","Air Sealing",null,null,null,null,null,null,null,null,null,null,null,null,null,null,null,null,null,null,"Existing Home ACH @ 50 Pa"]
[null,null,null,null,null,null,null,null,null,null,null,null,null,null,null,null,null,null,null,null,null,null,null,"Achieved home ACH @ 50 Pa",null,null,null,null,null,null,null,null,null,null,null,null,null,null,null,null,null," "]
[null,"->",null,"-","Above grade walls ",null,null,null,null,null,null,null,null,null,null,null,null,null,null,null,null,null,null,null,null,null,null,null,null,null,null,null,null,null,null,null,null,null,null,null,null,null,null,null,null,null,null," ",null,null,null,null,null,null,null,null," "]
[null,null,null,"-","Foundation walls ",null,null,null,null,null,null,null,null,null,null,null,null,null,null,null,null,null,null,null,null,null,null,null,null,null,null,null,null,null,null,null,null,null,null,null,null,null,null,null,null,null,null,null,null," "]
[null,null,null,"-","Rim/box joists\nPony Walls",null,null,null,null,null,null,"-",null,null,null,null,null,null,null,null,null,null,null,null,null,null,null,null,null,null,null,null,null,null,null,null,null,null,null,null,null,null," ",null,null," "]
[null,null,null,"-","Attic Space",null,null,null,null,null,null,null,null,null,null,null,null,null,null,null,null,null,null,null,null,null,null,null,null,null,null,null,null,null,null,null,null,null,null,null,null,null,null," "]
[null,null,null,"-","Flat or vaulted exterior ceiling"]
[null,null,null,"-","Basement slab ",null,null,null,null,null,null,"-"]
[null,null,null,"-","Suspended and Exposed floors ",null,null,null,null,null,null,"-",null,null,null,null,null,null,null,null,null,null,null,null,null,null,null,null,null,null,null,null,null,null,null,null,null,null,null,null,null,null," "]
[null,null,null,"-","Exterior Swing Doors",null,null,null,null,null,null,"-"]
[null,null,null,"-","Windows \nSliding Glass Doors ",null,null,null,null,null,null,"-",null,null,null,null,null,null,null,null,null,null,null,null,null,null,null,null,null,null,null,null,null,null,null,null,null,null,null,null,null,null,null,null,null,null,null,null,null,null,null,null," "]
[null,null,null,"-","Skylights and Roof Hatch",null,null,null,null,null,null,"-"]
[null,null,null,"-","Primary Heating System",null,null,null,null,null,null,"-"]
[null,null,null,"-","Supplemental Heating / Cooling",null,null,null,null,null,null,"-",null,null,null,null,null,null,null,null,null,null,null,null,null,null,null,null,null,null,null,null,null,null,null,null,null,null,null,null,null,null,null," "]
[null,null,null,"-","Fireplaces",null,null,null,null,null,null,"-"]
[null,"->",null,"-","Ventilation + Ductwork",null,null,null,null,null,null,"-"]
[null,null,null,"-","Domestic Hot Water",null,null,null,null,null,null,"-"]
[null,null,null,"-","Solar PV or Solar Thermal",null,null,null,null,null,null,"-"]
[null,null,null,"-","Other Selected Upgrades",null,null,null,null,null,null,"-",null,null,null,null,null,null,null,null,null,null,null,null,null,null,null,null,null,null,null,null,null,null,null,null,null,null,null,null,null,null,null,null,null,null," "]
[null,null,null,"page 1 of 2"]
[null,null,null,null,null,null,null,null,null,null,null,null,null,null,null,null,null,null,null,null,null,null,null,null,null,null,null,null,null,null,null,null,null,null,null,null,null,null,null,null,null,null,null," "]
[null,null,null,"Alternative Upgrades Selected",null,null,null,null,null,null,null,null,null,null,null,null,null,null,null,null,null,null,null,null,null,null,null,null,null,null,null,null,null,null,"EA Verified"]
[null,null,null,"Envelope and Insulation"]
[null,"->",null,"-",null," Minor air sealing:  target 10% ACH improvement – EA identifies major leaks; air sealing repairs completed (1 pt)",null,null,null,null,null,null,null,null,null,null,null,null,null,null,null,null,null,null,null,null,null,null,null,null,null,null,null,null,null,null,null,null,null,null,null,null,null," "]
[null,"->",null,"-",null," Major air sealing: 50% reduction via professional aerosol system; requires mechanical continuous exhaust  (2 pts)",null,null,null,null,null,null,null,null,null,null,null,null,null,null,null,null,null,null,null,null,null,null,null,null,null,null,null,null,null,null,null,null,null,null,null,null,null,null,null,null,null," "]
[null,"->",null,"-",null," Attic insulation: if <R12 increase to R28, if >R12 increase to R40 (nominal values)  (1 pt)",null,null,null,null,null,null,null,null,null,null,null,null,null,null,null,null,null,null,null,null,null,null,null,null,null,null,null,null,null,null,null,null,null,null,null," "," "]
[null,"->",null,"-",null," Flat or vaulted exterior ceiling: if lower than R14 nominal, increase to R14 or higher  (1 pt)"]
[null,null,null,"-",null," Uninsulated / exposed spaces: fully insulate all crawl space / basement wall / exposed floor cavities (1 pt)"]
[null,null,null,"-",null," Exterior insulation: (min 1\" thick) on >50% of the home's exterior vertical above-grade sheathing (4 pts)"]
[null,null,null,"Home Electrification",null,null,null,null,null,null,null,null,null,null,null,null,null,null,null,null,null,null,null,null,null,null,null,null,null,null,null,null,null,null,null,null,null,null,null,null,null,null," ",null,null,null,null," ",null,null," "]
[null,null,null,"-",null," 100% electric: home fuel services disconnected (6 pts)",null,null,null,null,null,null,null,null,null,null,null,null,null,null,null,null,null,null,null,null,null,null,null,null,null,null,null,null,null,null,null,null,null,null,null,null,null,null," "]
[null,"->",null,"-",null," EV charger: Level 2 charger installation in carport or garage (1 pt)"]
[null,null,null,"-",null," Electric panel: amperage upgrade to support additional electrical loads (1 pt)",null,null,null,null,null,null,null,null,null,null,null,null,null,null,null,null,null,null,null,null,null,null,null,null,null,null,null,null,null,null,null,null,null,null,null," ",null,null,null," "]
[null,null,null,"-",null," Solar PV: rooftop array (1 point per kW installed, max. 3 points) or Solar Hot Water system (2 pts)",null,null,null,null,null,null,null,null,null,null,null,null,null,null,null,null,null,null,null,null,null,null,null,null,null,null,null,null,null,null,null,null,null,null,null,null," "]
[null,"->",null,"-",null," Appliance fuel-switch: replace with electric, or decommission a fuel-based appliance (e.g. fireplace, dryer, stove) (1 pt)",null,null,null,null,null,null,null,null,null,null,null,null,null,null,null,null,null,null,null,null,null,null,null,null,null,null,null,null,null,null,null,null,null,null,null,null,null,null,null," "]
[null,null,null,"Windows, Doors and Sloped Glazing",null,null,null,null,null,null,null,null,null,null,null,null,null,null,null,null,null,null,null,null,null,null,null,null,null,null,null,null,null,null,null,null,null,null,null,null,null,null," "]
[null,"->",null,"-",null," Passive cooling: install awnings or exterior shading on windows / glass doors on at least one entire building face (1 pt)"]
[null,null,null,"-",null," Windows: Replace 3 existing units with USI < 1.04 W/m2K (1 point per 3 units, max 3 pts)",null,null,null,null,null,null,null,null,null,null,null,null,null,null,null,null,null,null,null,null,null,null,null,null,null,null,null,null,null,null,null,null,null,null,null," ",null," "]
[null,null,null,"-",null," Doors: Replace two exterior doors, at least one achieving a USI < 1.44 W/m2K product (1 pt)",null,null,null,null,null,null,null,null,null,null,null,null,null,null,null,null,null,null,null,null,null,null,null,null,null,null,null,null,null,null,null,null,null,null,null,null," ",null,null,null,null,null,null,null,null,null,null,null," "]
[null,null,null,"HVAC - Heating, Ventilation, Air Conditioning",null,null,null,null,null,null,null,null,null,null,null,null,null,null,null,null,null,null,null,null,null,null,null,null,null,null,null,null,null,null,null,null,null,null,null,null,null,null,null,null,null," "]
[null,"->",null,"-",null," Ventilation and controls: all bathrooms require exhaust fans on timers or humidistats & install smart home thermostat  (1 pt)"]
[null,null,null,"-",null," Heat pump displacement: install heat pump for <70% of house floor area, provides heating down to at least 0 deg C (3 pts)",null,null,null,null,null,null,null,null,null,null,null,null,null,null,null,null,null,null,null,null,null,null,null,null,null,null,null,null,null,null,null,null,null," "," "]
[null,null,null,"-",null," Heat pump replacement: install heat pump as primary system for >70% of floor area (5 pts)"]
[null," ",null,"-",null," Heat Recovery Ventilator (HRV or ERV): install >80% efficiency SRE at 0 deg C (2 pts)"]
[null,null,null,"Domestic Hot Water (DHW)"]
[null,null,null,"-",null," Electric DHW: replace existing system with an electric model (1 pt)",null,null,null,null,null,null,null,null,null,null,null,null,null,null,null,null,null,null,null,null,null,null,null,null,null,null,null,null,null,null,null,null,null,null,null,null,null," ",null,null,null,null,null,null," "]
[null,null,null,"-",null," Heat Pump DHW: Replace existing system with a heat pump model (3 pts)"]
[null,null,null,"-",null," Drain Water Heat Recovery: install a minimum 42% DWHR system (1 pt)"]
[null,null,null,"Other (propose upgrades not in this list, to be reviewed by City of Vancouver staff)",null,null,null,null,null,null,null,null,null,null,null,null,null,null,null,null,null,null,null,null,null,null,null,null,null,null,null,null,null,null,null,null,null,null,null," "]
[null,null,null,"-",null,null,null,null,null,null,null,null,null,null,null,null,null,null,null,null,null,null,null,null,null,null,null,null,null,null,null,null,null,null,null,null,null,null,null,null,null,null,null,null," "]
[null,null,null,"-",null,null,null,null,null,null,null,null,null,null,null,null,null,null,null,null,null,null,null,null,null,null,null,null,null,null,null,null,null,null,null,null,null,null,null," "]
[null,null,null,null,"Information and Signature",null,null,null,null,null,null,null,null,null,null,null,null,null,null,null,null,null,null,null,null,null,null,null,null,null,null,null,null,null,null,null,null,null,null,null,null,null,null," ",null,null," "]
[null,null,null,"EA Name and EA #: ",null,null,null,null,null,null,null,null,null,null,null,null,null,null,null,null,null,null,"EA Email:"]
[null,null,null,"EA Company: ",null,null,null,null,null,null,null,null,null,null,null,null,null,null,null,null,null,null,"EA Phone:"]
[null,null,null,"Energy Advisor Signature:",null,null,null,null,null,null,null,null,null,null,null,null,null,null,null,null,null,null,"Date:"]
[]
[null,null,null,"Homeowner (or representative):",null,null,null,null,null,null,null,null,null,null,null,null,null,null,null,null,null,null,"Owner signature"]
[null,null,null,"www.vancouver.ca/home-energy-renovations"]
[null,null,null,"page 2 of 2"]
[]
[]
[]
[]
[]
[null,null,null,null,null,null,null,null,null,null,null,null,null," "]
[]
[]
[null,null,null,null,null,null,null,null,null,null,null,null,null," "]
[]
[]
[]
[]
[]
[]
[]
[]
[]
[]
[]
[]
[]
[]
[]
[]
[]
[]
[]
[]
[]
[]
[]
[]
[]
[]
[]
[]
[]
[]
[]
[]
[]
[]
[]
[]
[]
[]
[]
[]
[]
[]
[]
[]
[]
[]
[]
[]
[]
[]
[]
[]
[]
[]
[]
[]
[null,null,null,"Tables hidden below ↓"]
[]
[null,null,null,"Air tightness"]
[null,null,null,"Selected upgrade: target 10% improvement; seal major leaks identified by EA"]
[null,null,null,"Selected upgrade: 50% ACH improvement"]
[null,null,null,"Reconstruction: to meet 3.5 ACH @ 50Pa (or 2.1 NLA for small units)"]
[null,null,null,"Other"]
[]
[null,null,null,"Walls"]
[null,null,null,"Meets code: new or upgraded walls are R22 effective (RSI 3.85) "]
[null,null,null,"Alternatives upgrades selected - maintain existing stud depth"]
[null,null,null,"Heritage: maintain existing stud depth and insulation"]
[null,null,null,"Other"]
[]
[null,null,null,"Rim joists"]
[null,null,null,"Meets code: new or upgraded walls are R22 effective (RSI 3.85) "]
[null,null,null,"Alternatives upgrades selected - maintain existing stud depth"]
[null,null,null,"Heritage: maintain existing stud depth and insulation"]
[null,null,null,"Other"]
[]
[null,null,null,"Attic Space"]
[null,null,null,"'New' attic: meets R48 effective",null,null,null,null,null,null,null,null,null,null," "," "]
[null,null,null,"Selected upgrade: existing <R12 increased to R28"]
[null,null,null,"Selected upgrade: existing >R12 increased to R40"]
[null,null,null,"Other"]
[]
[null,null,null,"Flat or vaulted exterior ceiling"]
[null,null,null,"Meet code: R40 eff (RSI 7.0); or R30 eff (RSI 5.28) for for <110m2 units "]
[null,null,null,"Alternatives upgrades selected: maintain existing joist depth, R14+"]
[null,null,null,"Heritage house - maintain existing joist depth"]
[null,null,null,"Other"]
[]
[null,null,null,"Basement slab "]
[null,null,null,"Meets code: new foundation - meets R14 effective"]
[null,null,null,"Other"]
[]
[null,null,null,"Suspended and Exposed floors "]
[null,null,null,"Meets code: new or upgraded floor is R24 eff. (RSI 4.2)"]
[null,null,null,"Selected upgrade: existing joists filled with min. R24 nominal"]
[null,null,null,"Other"]
[]
[null,null,null,"Doors (side hinged)"]
[null,null,null,"Meets code: new doors are USI 1.84 or lower"]
[null,null,null,"Selected upgrade: replacement door(s); at least one USI 1.64 or lower"]
[null,null,null,"Heritage: keep existing door, complete weather sealing"]
[null,null,null,"Other"]
[]
[null,null,null,"Windows and Sliding Glass Doors"]
[null,null,null,"Meets code: new or replaced windows / sliding glass USI 1.22 or lower"]
[null,null,null,"Selected upgrade: replacement window(s) USI 1.04 or lower",null,null,null,null,null,null,null,null,null,null,null,null,null,null," "]
[null,null,null,"Heritage: keep existing windows, complete weather sealing"]
[null,null,null,"Heritage: replace windows with double pane replicas"]
[null,null,null,"Other"]
[]
[null,null,null,"Skylights and Roof Hatch"]
[null,null,null,"Meets code: new or replaced skylights are USI 2.4, Roof hatch USI 2.9 or lower"]
[null,null,null,"Other"]
[]
[null,null,null,"Primary Heating System"]
[null,null,null,"Meets code: new furnace / boiler- minimum 92% efficient AFUE"]
[null,null,null,"Reconstruction: electric heating system"]
[null,null,null,"Selected upgrade: primary system replaced with central heat pump"]
[null,null,null,"Other"]
[]
[null,null,null,"Supplemental heating / cooling"]
[null,null,null,"Selected upgrade: heat pump <70% floor area"]
[null,null,null,"Selected upgrade: heat pump >70% floor area"]
[null,null,null,"Other"]
[]
[null,null,null,"Fireplaces"]
[null,null,null,"Meets code: new fireplace(s) direct vent electronic ignition and a timer"]
[null,null,null,"Selected upgrade: remove existing fireplace(s) or replace with electric model"]
[null,null,null,"Other"]
[]
[null,null,null,"HRV / Ventilation + Ductwork"]
[null,null,null,"Meets code: new HRV >75% SRE @ 0 deg C, on continuous mode or better"]
[null,null,null,"Selected upgrade: HRV >80% SRE @ 0 deg C"]
[null,null,null,"Selected upgrade: Exhaust fans on timer or humidistat & smart thermostat"]
[null,null,null,"Other"]
[]
[null,null,null,"Domestic Hot Water"]
[null,null,null,"Meets code: new system (EF) or (UEF) ≥ 0.78"]
[null,null,null,"Selected upgrade: DHW electric replacement"]
[null,null,null,"Selected upgrade: DHW heat pump "]
[null,null,null,"Other"]
[]
[null,null,null,"Solar PV or Solar Thermal"]
[null,null,null,"New system - installed to best practices"]
[null,null,null,"Other"]
[]
[null,null,null,"Other Upgrades"]
[]
[]
[null,null,null,"-"]
[null,null,null,"1 or 2 Family Dwelling"]
[null,null,null,"Laneway or Coach House"]
[null,null,null,"Townhouse unit"]
[null,null,null,"Other"]
[]
[]
[null,null,null,null,null,null,null,"-"]
[null,null,null,null,null,null,null,null,"-","-"]
[null,null,null,null,null,"-",null,null,0,6]
[null,null,null,null,null,null,null,null,"-","-"]
[null,null,null,null,null,"-",null,null,0,5]
[null,null,null,null,null,1,null,null,"-","-"]
[null,null,null,null,null,2,null,null,1,10]
[null,null,null,null,null,3,null,null,"-"]
[null,null,null,null,null,4,null,null,2]
[null,null,null,null,null,5,null,null,"-"]
[null,null,null,null,null,"-",null,null,3]
[null,null,null,null,null,1]
[null,null,null,null,null,null,null,null,"-",null,null,null,null,null,null,null,"-"]
[null,null,null,null,null,"-",null,null,-1,null,null,null,null,null,null,null,1]
[null,null,null,null,null,1,null,null,"-",null,null,null,null,null,null,null,2]
[null,null,null,null,null,2,null,null,2,null,null,null,null,null,null,null,3]
[null,null,null,null,null,3,null,null,3]
[null,null,null,null,null,4]
[null,null,null,null,"-","-",null,null,null,null,null,null,null,null,null,null,"-",null,null,null,"-"]
[null,null,null,null,"Y","Y",null,null,null,null,null,null,null,null,null,null,"< 5%",null,null,null,"<5%"]
[null,null,null,null,"-","N",null,null,null,null,null,null,null,null,null,null,"5 - 25% ",null,null,null,"5 - 50%"]
[null,null,null,null,null,null,null,null,null,null,null,null,null,null,null,null,"26 - 50%",null,null,null,"> 51 %"]
[null,null,null,null,"X",null,null,null,null,null,null,null,null,null,null,null,"> 51%"]
[null,null,null,null,"-"]
[]
[null,null,null,null,"-",null,null,null,"-",null,null,null,null,null,null,null,0]
[null,null,null,null,"Yes",null,null,null,"Yes",null,null,null,null,null,null,null,1]
[null,null,null,null,"Needs Revision",null,null,null,"No",null,null,null,null,null,null,null,2]
[null,null,null,null,"N/A",null,null,null,"N/A",null,null,null,null,null,null,null,3]
[]
[]
[]
[]
[null,null,null,null,null,null,null,"-"]
[null,null,null,null,"-",null,null,0]
[null,null,null,null,1,null,null,"-"]
[null,null,null,null,2,null,null,1]
[null,null,null,null,3,null,null,"-"]
[null,null,null,null,4,null,null,2]
[null,null,null,null,null,null,null,"-"]
[null,null,null,null,"-",null,null,3]
[null,null,null,null,1]
[null,null,null,null,null,null,null,"-"]
[null,null,null,null,"-",null,null,-1]
[null,null,null,null,1]
[null,null,null,null,2]
[null,null,null,null,3]
[null,null,null,null,4]
[]
[]
[]
[]
[]
[]
[]
[]
[]
[null,null,null,null,null,null,null,null,null,null,null,null,null,null,null," "]
[]
[]
[]
[]
[]
[]
[]
[]
[]
[]
[]
[]
[]
[]
[]
[]
[]
[]
[]
[]
[]
[]
[]
[]
[]
[]
[]
[]
[]
[]
[]
[]
[]
[]
[]
[]
[]
[]
[]
[]
[]
[]
[]
[]
[]
[]
[]
[]
[]
[]
[]
[]
[]
[]
[]
[]
[]
[]
[]
[]
[]
[]
[]
[null,null,null,null,null,null,null,null,null,null,null,null,null,null,null,null,null,null,null,null,null,null,null,null,null,null,null,null,null,null,null," "]
[]
[]
[]
[]
[null,null,null,null,null,null,null,null,null,null,null,null,null,null,null,null,null,null,null,null,null,null,null,null,null,null,null,null,null,null,null,null,null,null,null,null,null,null,null,null,null,null,null,null," "]
[]
[]
[]
[]
[]
[]
[]
[]
[]
[]
[]
[]
[]
[]
[]
[null,null,null,null,null,null,null,null,null,null,null,null,null,null,null,null,null,null,null,null,null,null,null,null,null,null,null,null,null,null,null,null,null,null,null,null,null,null,null,null,null,null,null,null,null," "]
[null,null,null,null,null,null,null,null,null,null,null,null,null,null,null,null,null,null,null,null,null,null,null,null,null,null,null,null,null,null,null,null,null,null,null,null,null,null,null,null,null,null,null," "]
[null,null,null,null,null,null,null,null,null,null,null,null,null,null,null,null,null,null,null,null,null,null,null,null,null,null,null,null,null,null,null,null,null,null,null,null,null,null,null,null,null,null,null,null,null,null,null,null,null," "]
[]
[]
[]
[]
[]
[]
[]
[]
[]
[]
[]
[]
[]
[]
[]
[]
[]
[]
[]
[]
[]
[]
[]
[]
[]
[]
[null,null,null,null,null,null,null,null,null,null,null,null,null,null,null,null,null,null,null,null,null,null,null,null,null,null,null,null,null,null,null,null,null,null,null,null,null,null,null,null,null,null,null,null,null,null,null,null,null,null,null,null,null,null,null,null,null,null,null,null,null,null," "]
[]
[]
[]
[]
[]
[]
[]
[]
[]
[]
[]
[]
[]
[]
[]
[]
[]
[]
[]
[]
[]
[]
[]
[]
[]
[]
[]
[]
[]
[]
[]
[]
[]
[]
[]
[]
[]
[]
[]
[]
[]
[]
[]
[]
[]
[]
[]
[]
[]
[]
[null,null,null,null,null," "]
[]
[]
[]
[]
[]
[]
[]
[]
[]
[]
[]
[]
[]
[]
[]
[]
[]
[]
[]
[]
[]
[]
[]
[]
[]
[]
[]
[]
[]
[]
[]
[]
[]
[]
[]
[]
[]
[]
[]
[]
[]
[]
[]
[]
[null,null,null,null,null,null,null,null,null,null,null,null,null,null,null,null,null,null,null," "]